bitfinex-derivatives/quotes_SOLF0:USTF0_20250509
["timestamp","ask_amount","ask_price","bid_price","bid_amount"]
[1746818338446,5.8335,171.42,171.38,5.8344]
[1746818339048,5.8335,171.42,171.39,5.8343]
[1746818340151,36.3731,171.43,171.4,5.8339]
[1746818340649,30.54,171.43,171.4,5.8339]
[1746818340844,30.54,171.43,171.34,3.7516]
[1746818341048,30.54,171.43,171.36,1.0]
[1746818341450,5.8334,171.42,171.39,5.8341]
[1746818341848,36.373,171.43,171.36,1.0]
[1746818342046,30.54,171.43,171.36,1.0]
[1746818342445,30.54,171.43,171.4,5.8338]
[1746818342654,30.54,171.43,171.36,1.0]
[1746818343053,30.54,171.43,171.41,5.8334]
[1746818343354,30.54,171.43,171.36,1.0]
[1746818343552,30.54,171.43,171.41,5.8334]
[1746818343753,30.54,171.43,171.36,1.0]
[1746818344253,5.8333,171.42,171.38,5.8346]
[1746818344455,30.54,171.43,171.36,1.0]
[1746818344754,5.8339,171.41,171.37,5.8347]
[1746818345854,5.834,171.4,171.37,5.8347]
[1746818346949,5.8338,171.41,171.38,5.8346]
[1746818347552,30.54,171.43,171.38,5.8346]
[1746818347553,5.834,171.4,171.38,5.8346]
[1746818347752,5.834,171.4,171.36,1.0]
[1746818347753,5.834,171.4,171.37,5.8348]
[1746818347950,5.834,171.4,171.36,1.0]
[1746818348151,30.54,171.43,171.36,1.0]
[1746818348856,30.54,171.43,171.39,5.8341]
[1746818349657,5.8336,171.42,171.39,5.8341]
[1746818349856,30.54,171.43,171.4,5.8339]
[1746818350258,30.54,171.43,171.41,5.8334]
[1746818350556,30.54,171.43,171.36,1.0]
[1746818350957,30.54,171.43,171.4,5.8338]
[1746818351357,30.54,171.43,171.36,1.0]
[1746818351555,30.54,171.43,171.39,5.8342]
[1746818351754,5.8339,171.41,171.36,1.0]
[1746818352458,36.3733,171.43,171.38,5.8344]
[1746818352656,30.54,171.43,171.36,1.0]
[1746818352965,5.8338,171.41,171.36,6.8352]
[1746818353160,30.54,171.43,171.36,1.0]
[1746818354262,30.54,171.43,171.41,5.8336]
[1746818354463,30.54,171.43,171.36,1.0]
[1746818354658,30.54,171.43,171.4,5.8338]
[1746818354961,30.54,171.43,171.36,1.0]
[1746818355162,30.54,171.43,171.42,5.8333]
[1746818355850,30.54,171.43,171.36,1.0]
[1746818356361,36.3732,171.43,171.38,5.8346]
[1746818356561,30.54,171.43,171.36,1.0]
[1746818357061,1.9304,171.42,171.36,1.0]
[1746818357559,1.9939,171.41,171.36,1.0]
[1746818357760,30.48,171.4,171.38,5.8346]
[1746818357953,30.54,171.39,171.38,5.8346]
[1746818360967,30.54,171.39,171.36,1.0]
[1746818361265,5.8349,171.38,171.36,1.0]
[1746818361467,30.54,171.39,171.36,1.0]
[1746818362456,30.54,171.39,171.29,1.0]
[1746818362861,30.54,171.39,171.32,5.8367]
[1746818363368,5.8358,171.35,171.31,5.8369]
[1746818363566,30.34,171.34,171.29,1.0]
[1746818364667,30.34,171.34,171.33,5.8363]
[1746818365163,5.8341,171.4,171.29,1.0]
[1746818365361,30.34,171.4,171.29,31.26]
[1746818366365,30.34,171.4,171.37,5.835]
[1746818366570,30.34,171.4,171.29,388.26]
[1746818367268,30.34,171.4,171.29,358.0]
[1746818367469,5.8359,171.35,171.31,5.8368]
[1746818367772,60.82,171.35,171.29,358.0]
[1746818368673,66.6559,171.35,171.31,5.8368]
[1746818368866,60.82,171.35,171.31,5.8368]
[1746818369066,60.82,171.35,171.29,358.0]
[1746818370372,60.82,171.35,171.33,5.8361]
[1746818371270,60.82,171.35,171.29,358.0]
[1746818371271,30.34,171.35,171.34,5.836]
[1746818374274,30.32,171.38,171.37,5.835]
[1746818374777,30.32,171.38,171.36,5.8352]
[1746818374970,30.32,171.38,171.29,388.34]
[1746818375976,30.32,171.38,171.37,5.835]
[1746818377683,30.32,171.38,171.36,5.8352]
[1746818377981,60.48,171.39,171.36,5.8352]
[1746818379083,60.48,171.39,171.37,5.8349]
[1746818380382,60.48,171.39,171.38,5.8346]
[1746818380681,60.48,171.39,171.29,388.34]
[1746818380885,60.48,171.39,171.37,5.8349]
[1746818382187,66.3144,171.39,171.36,5.8352]
[1746818382786,60.48,171.39,171.29,358.0]
[1746818382979,60.48,171.39,171.29,1.0]
[1746818383185,75.89119794,171.39,171.29,1.0]
[1746818383481,75.89119794,171.39,171.31,5.8369]
[1746818383482,5.8363,171.34,171.31,5.8369]
[1746818383780,60.3,171.33,171.31,5.8369]
[1746818383988,60.3,171.33,171.29,1.0]
[1746818384188,66.1366,171.33,171.3,5.8371]
[1746818384378,60.3,171.33,171.29,1.0]
[1746818385293,66.1364,171.33,171.3,5.8372]
[1746818385691,60.3,171.33,171.29,1.0]
[1746818386592,60.3,171.33,171.3,5.8373]
[1746818387496,66.1364,171.33,171.3,5.8373]
[1746818387794,60.3,171.33,171.3,5.8373]
[1746818387989,60.3,171.33,171.31,5.837]
[1746818388888,60.3,171.33,171.32,5.8367]
[1746818390397,30.34,171.33,171.32,5.8367]
[1746818390597,29.72,171.36,171.34,5.8357]
[1746818390792,30.34,171.37,171.34,5.8357]
[1746818390990,60.04,171.37,171.35,5.8356]
[1746818393094,30.34,171.37,171.35,5.8356]
[1746818394001,30.34,171.37,171.36,5.8353]
[1746818395489,5.8355,171.36,171.29,30.54]
[1746818395684,30.34,171.37,171.29,30.54]
[1746818395890,30.34,171.37,171.29,1.0]
[1746818396493,30.34,171.37,171.31,5.8368]
[1746818396494,5.8361,171.34,171.31,5.8368]
[1746818396695,30.34,171.37,171.29,1.0]
[1746818397495,5.8354,171.36,171.33,5.8361]
[1746818397695,30.34,171.37,171.29,1.0]
[1746818398093,5.8355,171.36,171.33,5.8361]
[1746818398790,5.8355,171.36,171.29,1.0]
[1746818398994,5.8357,171.35,171.32,5.8365]
[1746818400096,5.8354,171.36,171.29,1.0]
[1746818400295,30.34,171.37,171.29,1.0]
[1746818401295,5.8358,171.35,171.29,1.0]
[1746818401594,30.34,171.37,171.29,1.0]
[1746818401797,5.8356,171.36,171.33,5.8361]
[1746818402104,30.34,171.37,171.29,1.0]
[1746818402396,30.34,171.37,171.3,5.8373]
[1746818402397,5.8365,171.33,171.3,5.8373]
[1746818402597,30.34,171.37,171.29,1.0]
[1746818402898,5.8359,171.35,171.32,5.8366]
[1746818403098,30.34,171.37,171.32,5.8366]
[1746818403300,30.34,171.37,171.29,1.0]
[1746818403498,5.837,171.32,171.29,6.8375]
[1746818403699,29.6,171.32,171.29,6.8375]
[1746818403997,29.6,171.32,171.29,1.0]
[1746818404200,29.6,171.32,171.29,2.0]
[1746818404800,5.8373,171.31,171.29,2.0]
[1746818405001,29.6,171.32,171.29,2.0]
[1746818405602,29.6,171.32,171.29,7.8377]
[1746818405900,29.6,171.32,171.29,2.0]
[1746818406100,5.837,171.31,171.29,2.0]
[1746818406403,29.6,171.32,171.29,2.0]
[1746818407603,29.6,171.32,171.31,5.837]
[1746818408103,29.28,171.33,171.32,5.8367]
[1746818408699,29.6,171.36,171.29,2.0]
[1746818409100,58.96,171.36,171.29,5.7382]
[1746818410301,58.96,171.36,171.33,5.8362]
[1746818410506,58.96,171.36,171.29,5.7382]
[1746818410706,58.96,171.36,171.31,5.8368]
[1746818410906,58.96,171.36,171.29,5.7382]
[1746818411105,5.8357,171.35,171.29,5.7382]
[1746818411408,5.8357,171.35,171.32,5.8365]
[1746818411705,64.7955,171.36,171.29,5.7382]
[1746818411906,58.96,171.36,171.29,5.7382]
[1746818412102,29.6,171.36,171.29,5.7382]
[1746818412406,35.4353,171.36,171.29,5.7382]
[1746818412607,35.4353,171.36,171.33,5.836]
[1746818412802,29.6,171.36,171.29,5.7382]
[1746818413000,29.6,171.36,171.35,5.8357]
[1746818413196,58.94,171.4,171.29,5.7382]
[1746818413401,58.94,171.4,171.3,29.6]
[1746818413600,58.94,171.4,171.31,29.34]
[1746818413906,29.6,171.4,171.31,29.34]
[1746818414506,29.6,171.4,171.38,5.8344]
[1746818415908,29.6,171.4,171.39,5.8343]
[1746818418406,504.22,171.44,171.31,386.34]
[1746818418601,533.82,171.44,171.31,386.34]
[1746818418999,533.82,171.44,171.42,5.8331]
[1746818419410,533.82,171.44,171.34,1.8922]
[1746818419608,533.82,171.44,171.43,5.8329]
[1746818419807,29.6,171.44,171.43,5.8329]
[1746818424517,29.24,171.48,171.47,5.8316]
[1746818424915,29.24,171.51,171.48,5.8309]
[1746818425214,29.24,171.51,171.41,386.24]
[1746818425411,29.24,171.51,171.48,5.8309]
[1746818425612,533.56,171.52,171.42,1.9197]
[1746818425808,533.56,171.52,171.43,3.8295]
[1746818426015,29.24,171.52,171.43,3.8295]
[1746818426514,29.24,171.52,171.43,360.8295]
[1746818427018,29.24,171.52,171.51,5.8302]
[1746818427413,29.18,171.56,171.46,29.18]
[1746818428014,5.829,171.55,171.51,5.8301]
[1746818428215,29.18,171.56,171.51,5.8301]
[1746818428416,29.18,171.56,171.46,29.18]
[1746818428622,29.18,171.56,171.49,5.8308]
[1746818428811,15.41119794,171.55,171.45,29.24]
[1746818429014,15.41119794,171.55,171.43,3.8295]
[1746818429524,5.83,171.52,171.48,5.8312]
[1746818429717,35.05,171.52,171.48,5.8312]
[1746818430018,29.22,171.52,171.49,5.8307]
[1746818430322,29.22,171.52,171.43,3.8295]
[1746818430516,29.22,171.52,171.5,5.8303]
[1746818431022,29.22,171.52,171.49,5.8308]
[1746818431224,29.22,171.52,171.43,3.8295]
[1746818431821,29.22,171.55,171.43,3.8295]
[1746818432218,35.0489,171.55,171.52,5.8298]
[1746818432721,29.22,171.55,171.52,5.8298]
[1746818433420,35.0491,171.55,171.51,5.8301]
[1746818433820,35.0491,171.55,171.52,5.8298]
[1746818434014,29.22,171.55,171.43,360.8295]
[1746818434719,5.8296,171.53,171.49,5.8306]
[1746818435221,5.8298,171.53,171.49,5.8306]
[1746818435422,29.22,171.55,171.49,5.8306]
[1746818435825,29.22,171.55,171.5,5.8305]
[1746818436324,29.22,171.55,171.52,5.8299]
[1746818436524,29.22,171.55,171.44,11.6651]
[1746818437320,29.22,171.55,171.44,368.6651]
[1746818438527,29.22,171.55,171.53,5.8293]
[1746818438722,29.22,171.55,171.46,29.22]
[1746818439726,29.22,171.55,171.51,5.8302]
[1746818440424,35.049,171.55,171.51,5.8302]
[1746818441827,35.049,171.55,171.52,5.8299]
[1746818442426,5.8293,171.54,171.52,5.8299]
[1746818443026,29.22,171.55,171.44,398.0251]
[1746818443527,5.8297,171.53,171.44,41.0251]
[1746818443728,29.22,171.55,171.44,29.36]
[1746818443928,29.22,171.55,171.49,5.8307]
[1746818444322,29.22,171.55,171.43,360.8295]
[1746818444529,5.83,171.52,171.43,360.8295]
[1746818444725,29.22,171.55,171.43,360.8295]
[1746818445230,5.8292,171.54,171.43,360.8295]
[1746818445529,5.8292,171.54,171.51,5.83]
[1746818446531,5.8292,171.54,171.52,5.8299]
[1746818447024,5.8295,171.53,171.43,360.8295]
[1746818447229,5.8295,171.53,171.51,5.8301]
[1746818447732,5.8304,171.51,171.43,360.8295]
[1746818447927,35.0304,171.51,171.43,3.8295]
[1746818448520,29.22,171.5,171.43,3.8295]
[1746818449025,29.22,171.5,171.48,5.8311]
[1746818449734,29.22,171.5,171.47,5.8315]
[1746818450030,29.22,171.5,171.43,3.8295]
[1746818451933,29.22,171.5,171.48,5.831]
[1746818452332,29.22,171.5,171.43,3.8295]
[1746818452525,29.22,171.5,171.49,5.8309]
[1746818454838,29.22,171.5,171.48,5.8311]
[1746818459643,29.22,171.5,171.49,5.8309]
[1746818459943,29.22,171.5,171.43,3.8295]
[1746818460639,29.22,171.5,171.48,5.8311]
[1746818461447,29.22,171.5,171.43,3.8295]
[1746818461944,35.0507,171.5,171.47,5.8313]
[1746818462246,29.22,171.5,171.43,3.8295]
[1746818462444,29.22,171.5,171.48,5.8312]
[1746818465340,35.0506,171.5,171.48,5.8312]
[1746818465544,38.8297982,171.5,171.39,357.0]
[1746818465746,5.833,171.43,171.39,357.0]
[1746818466044,28.98,171.44,171.39,5.834]
[1746818466543,5.8335,171.42,171.39,5.834]
[1746818466741,38.5897982,171.44,171.36,3.8054]
[1746818466946,38.5897982,171.44,171.34,358.8248]
[1746818467149,5.8336,171.41,171.34,358.8248]
[1746818467342,38.5897982,171.44,171.37,5.8347]
[1746818467848,28.98,171.44,171.34,358.8248]
[1746818468350,28.98,171.44,171.42,5.8331]
[1746818468547,28.98,171.44,171.34,358.8248]
[1746818468852,5.833,171.43,171.4,5.8337]
[1746818469345,5.8336,171.41,171.38,5.8345]
[1746818469951,5.834,171.4,171.37,5.8349]
[1746818471249,5.834,171.4,171.38,5.8346]
[1746818471449,5.8348,171.38,171.32,28.98]
[1746818471650,5.8348,171.38,171.35,5.8354]
[1746818472053,34.8144,171.39,171.32,28.98]
[1746818472251,34.8144,171.39,171.31,3.906]
[1746818474248,5.8348,171.38,171.31,3.906]
[1746818474851,5.835,171.37,171.31,3.906]
[1746818475051,28.98,171.39,171.31,3.906]
[1746818475353,28.98,171.39,171.33,5.8362]
[1746818475553,9.6097982,171.38,171.33,5.8362]
[1746818475954,5.8355,171.36,171.33,5.8362]
[1746818476453,9.6097982,171.38,171.32,5.8365]
[1746818477050,9.6097982,171.38,171.33,5.8363]
[1746818477552,5.8355,171.36,171.29,2.0]
[1746818478753,5.835,171.37,171.29,2.0]
[1746818478949,9.6097982,171.38,171.29,2.0]
[1746818479149,5.8353,171.36,171.33,5.8361]
[1746818480058,5.8353,171.36,171.34,5.836]
[1746818480355,5.835,171.37,171.34,5.836]
[1746818481559,5.8354,171.36,171.33,5.8362]
[1746818481858,28.76,171.35,171.29,2.0]
[1746818482152,9.6097982,171.38,171.29,2.0]
[1746818482353,57.76,171.37,171.29,2.0]
[1746818482756,5.8359,171.35,171.32,5.8365]
[1746818482956,57.76,171.37,171.29,2.0]
[1746818483156,5.836,171.35,171.29,2.0]
[1746818483352,5.836,171.35,171.32,5.8365]
[1746818483553,9.6097982,171.35,171.29,2.0]
[1746818484357,5.8372,171.31,171.29,2.0]
[1746818484557,34.8372,171.31,171.29,2.0]
[1746818484859,29.0,171.31,171.29,2.0]
[1746818485158,29.0,171.31,171.2,363.7332]
[1746818485355,9.6097982,171.28,171.21,5.8402]
[1746818485559,5.8395,171.24,171.2,1.0]
[1746818485854,28.76,171.23,171.2,1.0]
[1746818486255,5.8402,171.22,171.2,1.0]
[1746818486450,28.76,171.22,171.2,1.0]
[1746818487152,28.76,171.22,171.1,385.76]
[1746818487357,5.8417,171.18,171.08,366.6097982]
[1746818487559,28.76,171.17,171.14,5.8425]
[1746818487959,57.52,171.17,171.08,357.0]
[1746818488161,57.52,171.17,171.11,5.8436]
[1746818488461,63.3619,171.17,171.08,357.0]
[1746818489065,1.9015,171.2,171.08,357.0]
[1746818489267,57.68,171.19,171.08,357.0]
[1746818489465,28.76,171.18,171.08,357.0]
[1746818490069,28.76,171.18,171.15,5.8424]
[1746818490770,28.76,171.18,171.14,5.8427]
[1746818491070,28.76,171.18,171.08,357.0]
[1746818491871,28.76,171.18,171.15,5.8424]
[1746818492873,15.43466177,171.23,171.17,5.8418]
[1746818493173,57.74,171.22,171.1,385.98]
[1746818493472,57.74,171.22,171.11,28.76]
[1746818494971,57.74,171.22,171.17,5.8418]
[1746818494972,5.8405,171.21,171.17,5.8418]
[1746818495873,5.8408,171.2,171.11,385.76]
[1746818496461,73.17466177,171.22,171.11,385.76]
[1746818496659,73.17466177,171.22,171.11,357.0]
[1746818497866,15.44108588,171.12,171.05,1.01696401]
[1746818498071,15.45676456,171.09,170.92,5.8478]
[1746818498271,57.8,171.08,170.96,29.02]
[1746818498572,57.8,171.08,171.0,2.0041]
[1746818498965,15.46260035,171.05,170.92,3.8437]
[1746818499271,57.8,171.08,170.94,2.0041]
[1746818499574,30.95969888,171.0,170.81,244.84]
[1746818499875,5.8486,170.98,170.88,5.8516]
[1746818500165,5.8486,170.98,170.77,1.0]
[1746818500166,32.48,170.97,170.77,1.0]
[1746818500472,15.47576624,170.91,170.82,5.8537]
[1746818500667,67.64,170.9,170.77,1.0]
[1746818500865,68.42,170.89,170.77,1.0]
[1746818502262,68.42,170.89,170.79,5.8546]
[1746818502460,68.42,170.89,170.77,1.0]
[1746818502661,15.47576624,170.86,170.77,1.0]
[1746818503071,505.18,170.87,170.77,1.0]
[1746818503865,3.8427,170.99,170.77,1.0]
[1746818504067,81.64,170.98,170.78,40.8]
[1746818504266,15.49304556,170.97,170.79,40.84]
[1746818504466,81.64,170.98,170.8,3.8451]
[1746818504662,81.64,170.98,170.8,19.33814556]
[1746818505068,81.64,170.98,170.81,81.94]
[1746818505469,81.64,170.98,170.82,1.8834]
[1746818506273,40.82,170.98,170.82,1.8834]
[1746818506574,40.82,170.98,170.92,5.8503]
[1746818506974,40.82,170.98,170.83,62.0]
[1746818507173,40.82,170.98,170.83,306.84]
[1746818507565,40.82,170.98,170.83,244.84]
[1746818508176,40.82,170.98,170.89,5.8511]
[1746818508372,40.82,170.98,170.83,244.84]
[1746818509478,5.849,170.96,170.89,5.8513]
[1746818509778,40.82,170.98,170.83,244.84]
[1746818510071,46.6684,170.98,170.83,244.84]
[1746818510465,46.6684,170.98,170.84,62.0]
[1746818510667,505.18,170.99,170.83,302.75304556]
[1746818510867,42.12,170.98,170.83,302.75304556]
[1746818511281,42.12,170.98,170.84,1.17068602]
[1746818511674,505.18,170.99,170.84,1.17068602]
[1746818511877,505.18,170.99,170.85,42.34]
[1746818513481,511.028,170.99,170.85,42.34]
[1746818513678,505.18,170.99,170.85,42.34]
[1746818515279,505.18,170.99,170.84,63.17068602]
[1746818515577,505.18,170.99,170.84,1.17068602]
[1746818515886,84.2,170.98,170.84,1.17068602]
[1746818516987,84.2,170.98,170.93,5.8498]
[1746818517583,90.0486,170.98,170.93,5.8498]
[1746818517883,84.2,170.98,170.92,5.8503]
[1746818518377,84.2,170.98,170.84,287.87068602]
[1746818519682,90.0483,170.98,170.93,5.8497]
[1746818519883,84.2,170.98,170.84,287.87068602]
[1746818520782,90.0484,170.98,170.84,287.87068602]
[1746818520980,5.8484,170.98,170.84,287.87068602]
[1746818521184,42.14,170.98,170.84,287.87068602]
[1746818521373,42.14,170.98,170.85,62.0]
[1746818521577,42.14,170.98,170.84,287.87068602]
[1746818522277,42.14,170.98,170.84,246.01068602]
[1746818522478,5.8497,170.94,170.89,5.8512]
[1746818522780,57.61832946,170.98,170.84,246.01068602]
[1746818523179,5.8494,170.95,170.84,246.01068602]
[1746818523379,57.61832946,170.98,170.84,246.01068602]
[1746818523684,5.8502,170.93,170.88,5.8516]
[1746818524078,5.8502,170.93,170.84,246.01068602]
[1746818524274,5.8498,170.94,170.89,5.8511]
[1746818524584,42.14,170.98,170.84,1.17068602]
[1746818525285,520.65832946,170.99,170.84,1.17068602]
[1746818525484,83.56,170.97,170.84,1.17068602]
[1746818526390,83.56,170.97,170.88,5.8515]
[1746818526788,83.56,170.97,170.87,5.852]
[1746818527090,15.47832946,170.95,170.84,1.17068602]
[1746818527486,15.47832946,170.95,170.84,7.02378602]
[1746818527689,15.47832946,170.95,170.84,1.17068602]
[1746818527985,15.47832946,170.95,170.89,5.8513]
[1746818528192,15.47832946,170.95,170.84,1.17068602]
[1746818528690,15.47832946,170.95,170.89,5.8513]
[1746818528889,5.8503,170.93,170.89,5.8513]
[1746818529089,15.47832946,170.95,170.88,5.8517]
[1746818529282,5.2572,170.96,170.65,244.84]
[1746818529283,22.7772,170.96,170.65,244.84]
[1746818529488,15.50036984,170.85,170.66,5.6158]
[1746818529688,83.54,170.84,170.66,250.4558]
[1746818529989,5.8551,170.78,170.66,250.4558]
[1746818530186,15.50036984,170.81,170.66,250.4558]
[1746818530388,15.50036984,170.81,170.67,1.17185211]
[1746818530589,5.261,170.84,170.67,1.17185211]
[1746818530892,5.261,170.84,170.69,15.50036984]
[1746818530893,42.14,170.83,170.69,15.50036984]
[1746818531091,42.14,170.85,170.7,42.02]
[1746818531388,17.52,170.99,170.7,42.02]
[1746818531389,505.62,170.95,170.73,15.50036984]
[1746818531590,42.14,170.92,170.74,43.9686]
[1746818531888,42.14,170.92,170.77,15.50036984]
[1746818532093,42.14,170.92,170.78,43.9395]
[1746818532295,42.14,170.92,170.89,5.8511]
[1746818532481,42.14,170.92,170.8,42.14]
[1746818532786,42.14,170.92,170.81,42.06]
[1746818533188,42.14,170.92,170.82,1.956]
[1746818533387,505.62,170.95,170.83,42.5]
[1746818533588,42.14,170.97,170.84,1.9364]
[1746818533792,42.14,170.97,170.84,246.7764]
[1746818533994,42.14,170.97,170.94,5.8496]
[1746818534592,42.14,170.97,170.84,246.7764]
[1746818535894,42.14,170.97,170.85,62.0]
[1746818536093,42.14,170.97,170.86,43.9801]
[1746818536893,42.14,170.97,170.86,288.8201]
[1746818538899,9.6659,171.01,170.86,288.8201]
[1746818539300,42.2,171.0,170.95,5.8493]
[1746818539798,48.0476,171.0,170.95,5.8493]
[1746818539990,42.2,171.0,170.87,306.84]
[1746818540187,42.2,171.0,170.87,244.84]
[1746818540394,25.14356693,170.99,170.87,244.84]
[1746818540692,5.8492,170.96,170.91,5.8507]
[1746818540896,25.14356693,170.99,170.87,244.84]
[1746818541090,5.849,170.97,170.91,5.8504]
[1746818541396,25.14356693,170.99,170.91,5.8504]
[1746818541594,25.14356693,170.99,170.87,244.84]
[1746818542099,67.34356693,170.99,170.87,244.84]
[1746818542499,5.8483,170.98,170.93,5.8497]
[1746818542699,67.34356693,170.99,170.87,244.84]
[1746818543101,73.19176693,170.99,170.94,5.8496]
[1746818543299,67.34356693,170.99,170.87,244.84]
[1746818543702,5.8487,170.97,170.92,5.85]
[1746818544097,5.8484,170.98,170.93,5.8499]
[1746818544303,67.34356693,170.99,170.87,244.84]
[1746818544499,42.2,170.99,170.87,244.84]
[1746818544805,5.8489,170.97,170.87,244.84]
[1746818545298,5.8489,170.97,170.92,5.8501]
[1746818546004,5.8489,170.97,170.93,5.8499]
[1746818546805,5.8489,170.97,170.94,5.8496]
[1746818546997,5.8484,170.98,170.94,5.8496]
[1746818547398,5.8484,170.98,170.87,244.84]
[1746818547597,5.8487,170.97,170.87,244.84]
[1746818548203,5.8487,170.97,170.93,5.8498]
[1746818549510,5.8487,170.97,170.94,5.8495]
[1746818549702,42.2,170.99,170.94,5.8495]
[1746818550098,5.8487,170.97,170.94,5.8495]
[1746818550404,42.2,170.99,170.95,5.8492]
[1746818551005,42.2,170.99,170.94,5.8495]
[1746818551203,42.2,170.99,170.87,244.84]
[1746818551504,3.8186,171.01,170.87,306.84]
[1746818551706,51.8661,171.01,170.87,306.84]
[1746818551895,46.0186,171.01,170.87,244.84]
[1746818552204,46.0186,171.01,170.88,11.7031]
[1746818552406,46.0186,171.01,170.89,1.8687]
[1746818552904,5.848,170.99,170.95,5.8491]
[1746818553806,5.8484,170.98,170.94,5.8496]
[1746818554005,46.0186,171.01,170.89,246.7087]
[1746818554306,46.0186,171.01,170.89,1.8687]
[1746818555604,5.8485,170.98,170.94,5.8494]
[1746818556001,46.0186,171.01,170.89,1.8687]
[1746818556203,5.8482,170.99,170.95,5.8491]
[1746818556609,42.2,171.01,170.89,1.8687]
[1746818556807,89.1875,171.01,170.97,5.8485]
[1746818557008,83.34,171.01,170.97,5.8485]
[1746818557202,5.2171,171.08,170.92,41.1]
[1746818557407,42.2,171.07,170.93,3.7906]
[1746818557810,48.0452,171.07,170.93,248.6306]
[1746818558209,42.2,171.07,170.93,248.6306]
[1746818558409,48.0454,171.07,171.03,5.8465]
[1746818558610,42.2,171.07,171.03,5.8465]
[1746818558812,40.88,171.08,170.95,40.88]
[1746818559012,40.88,171.08,171.04,5.846]
[1746818559214,40.88,171.08,170.96,246.7433]
[1746818559412,40.88,171.09,170.96,246.7433]
[1746818560214,46.7247,171.09,171.04,5.8459]
[1746818560610,40.88,171.09,170.96,308.7433]
[1746818560914,5.8444,171.1,171.06,5.8453]
[1746818561115,40.88,171.11,170.99,40.66]
[1746818561316,40.88,171.11,170.99,285.5]
[1746818561516,5.8444,171.1,171.06,5.8455]
[1746818561812,40.88,171.11,170.99,285.5]
[1746818563219,40.88,171.11,170.99,244.84]
[1746818564420,5.8457,171.06,171.02,5.8467]
[1746818565120,5.8457,171.06,171.03,5.8465]
[1746818565320,40.88,171.11,170.99,244.84]
[1746818565623,40.88,171.11,171.05,5.8457]
[1746818565820,40.88,171.11,170.96,246.7433]
[1746818566417,40.88,171.11,171.04,5.846]
[1746818566613,5.8446,171.09,170.96,246.7433]
[1746818567520,5.845,171.08,170.96,246.7433]
[1746818567717,80.96,171.1,170.96,246.7433]
[1746818568423,5.8453,171.07,171.03,5.8463]
[1746818568615,5.8453,171.07,170.96,246.7433]
[1746818568922,5.8453,171.07,171.03,5.8463]
[1746818569217,5.8459,171.05,170.96,246.7433]
[1746818569415,15.47024491,171.07,170.96,246.7433]
[1746818569615,15.47024491,171.07,170.99,5.8477]
[1746818569812,5.8472,171.02,170.96,246.7433]
[1746818570016,5.8472,171.02,170.98,5.848]